[Event "Titled Tuesday Blitz June 13 Early 2023"]
[White "Chos, Alexey"]
[Black "Garcia Cuenca, Victor"]
[WhiteFideId "14117762"]
[BlackFideId "2250829"]
[WhiteElo "2234"]
[BlackElo "2329"]
[Result "0-1"]
[Round "9"]
[TimeControl "180+2"]
[Date "2023.06.13"]
[WhiteClock "0:00:00"]
[BlackClock "0:00:08"]
[Board "76"]

1. d4 {[%clk 0:02:54]}  Nf6 {[%clk 0:02:58]} 2. Nf3 {[%clk 0:02:55]}  c5 {[%clk 0:02:56]} 3. e3 {[%clk 0:02:55]}  b6 {[%clk 0:02:55]} 4. c4 {[%clk 0:02:53]}  Bb7 {[%clk 0:02:53]} 5. d5 {[%clk 0:02:51]}  e6 {[%clk 0:02:53]} 6. Nc3 {[%clk 0:02:52]}  exd5 {[%clk 0:02:53]} 7. cxd5 {[%clk 0:02:52]}  a6 {[%clk 0:02:48]} 8. e4 {[%clk 0:02:50]}  d6 {[%clk 0:02:48]} 9. a4 {[%clk 0:02:47]}  Be7 {[%clk 0:02:48]} 10. Bd3 {[%clk 0:02:42]}  O-O {[%clk 0:02:47]} 11. O-O {[%clk 0:02:41]}  Nbd7 {[%clk 0:02:47]} 12. h3 {[%clk 0:02:40]}  Re8 {[%clk 0:02:45]} 13. Bf4 {[%clk 0:02:34]}  Bf8 {[%clk 0:02:43]} 14. Nd2 {[%clk 0:02:23]}  Ne5 {[%clk 0:02:41]} 15. Be2 {[%clk 0:02:12]}  Rc8 {[%clk 0:02:35]} 16. Bh2 {[%clk 0:02:02]}  g5 {[%clk 0:02:06]} 17. f4 {[%clk 0:01:54]}  gxf4 {[%clk 0:02:05]} 18. Bxf4 {[%clk 0:01:55]}  Ng6 {[%clk 0:02:04]} 19. Bg5 {[%clk 0:01:41]}  Be7 {[%clk 0:02:02]} 20. Nc4 {[%clk 0:01:21]}  b5 {[%clk 0:01:55]} 21. axb5 {[%clk 0:01:19]}  axb5 {[%clk 0:01:56]} 22. Na5 {[%clk 0:01:15]}  Ba6 {[%clk 0:01:55]} 23. Nc6 {[%clk 0:01:11]}  Rxc6 {[%clk 0:01:47]} 24. dxc6 {[%clk 0:01:09]}  b4 {[%clk 0:01:42]} 25. Bxa6 {[%clk 0:01:00]}  bxc3 {[%clk 0:01:41]} 26. bxc3 {[%clk 0:01:01]}  Nxe4 {[%clk 0:01:41]} 27. Bxe7 {[%clk 0:00:53]}  Qxe7 {[%clk 0:01:41]} 28. Bc4 {[%clk 0:00:46]}  Ne5 {[%clk 0:01:38]} 29. Bd3 {[%clk 0:00:23]}  Nxc6 {[%clk 0:01:20]} 30. Qh5 {[%clk 0:00:20]}  Qe6 {[%clk 0:00:37]} 31. Bxe4 {[%clk 0:00:13]}  Qxe4 {[%clk 0:00:38]} 32. Qxf7+ {[%clk 0:00:11]}  Kh8 {[%clk 0:00:38]} 33. Qf6+ {[%clk 0:00:10]}  Kg8 {[%clk 0:00:38]} 34. Rae1 {[%clk 0:00:09]}  Qxe1 {[%clk 0:00:37]} 35. Rxe1 {[%clk 0:00:10]}  Rxe1+ {[%clk 0:00:37]} 36. Kh2 {[%clk 0:00:11]}  Re8 {[%clk 0:00:32]} 37. Qxd6 {[%clk 0:00:10]}  Ne5 {[%clk 0:00:32]} 38. Qxc5 {[%clk 0:00:10]}  Kf7 {[%clk 0:00:31]} 39. Qd5+ {[%clk 0:00:10]}  Kf6 {[%clk 0:00:31]} 40. c4 {[%clk 0:00:10]}  Re6 {[%clk 0:00:32]} 41. c5 {[%clk 0:00:10]}  h6 {[%clk 0:00:31]} 42. Kg3 {[%clk 0:00:09]}  Rc6 {[%clk 0:00:27]} 43. Kf4 {[%clk 0:00:06]}  Re6 {[%clk 0:00:19]} 44. g4 {[%clk 0:00:04]}  Ng6+ {[%clk 0:00:18]} 45. Kg3 {[%clk 0:00:04]}  Ne5 {[%clk 0:00:18]} 46. h4 {[%clk 0:00:04]}  Ng6 {[%clk 0:00:12]} 47. g5+ {[%clk 0:00:04]}  hxg5 {[%clk 0:00:12]} 48. hxg5+ {[%clk 0:00:05]}  Kf7 {[%clk 0:00:10]} 49. c6 {[%clk 0:00:05]}  Ne7 {[%clk 0:00:11]} 50. Qf3+ {[%clk 0:00:05]}  Ke8 {[%clk 0:00:11]} 51. c7 {[%clk 0:00:03]}  Kd7 {[%clk 0:00:11]} 52. Qb7 {[%clk 0:00:03]}  Nc8 {[%clk 0:00:10]} 53. Kf4 {[%clk 0:00:02]}  Rc6 {[%clk 0:00:08]} 54. Kf5 {[%clk 0:00:00]}  Nd6+ {[%clk 0:00:08]} 0-1


[Site "https://www.chess.com"]

[Event "Titled Tuesday Blitz June 13 Early 2023"]
[White "benny_aizenberg"]
[Black "Horak, Martin"]
[BlackFideId "367095"]
[WhiteElo "2686"]
[BlackElo "2091"]
[Result "1-0"]
[Round "9"]
[TimeControl "180+2"]
[Date "2023.06.13"]
[WhiteClock "0:00:57"]
[BlackClock "0:00:13"]
[Board "80"]

1. g4 {[%clk 0:03:00]}  d5 {[%clk 0:02:59]} 2. g5 {[%clk 0:03:01]}  e5 {[%clk 0:02:56]} 3. h4 {[%clk 0:03:02]}  Nc6 {[%clk 0:02:55]} 4. d3 {[%clk 0:03:02]}  h6 {[%clk 0:02:53]} 5. Bg2 {[%clk 0:03:02]}  hxg5 {[%clk 0:02:54]} 6. hxg5 {[%clk 0:03:02]}  Rxh1 {[%clk 0:02:54]} 7. Bxh1 {[%clk 0:03:03]}  Be6 {[%clk 0:02:51]} 8. Nc3 {[%clk 0:03:02]}  Be7 {[%clk 0:02:48]} 9. Nf3 {[%clk 0:02:55]}  Bb4 {[%clk 0:02:35]} 10. Bd2 {[%clk 0:02:54]}  Qd7 {[%clk 0:02:33]} 11. a3 {[%clk 0:02:52]}  Bxc3 {[%clk 0:02:27]} 12. Bxc3 {[%clk 0:02:52]}  d4 {[%clk 0:02:28]} 13. Bd2 {[%clk 0:02:52]}  O-O-O {[%clk 0:02:24]} 14. c4 {[%clk 0:02:52]}  Nge7 {[%clk 0:02:12]} 15. Qc2 {[%clk 0:02:50]}  Ng6 {[%clk 0:02:05]} 16. b4 {[%clk 0:02:47]}  Rh8 {[%clk 0:01:59]} 17. O-O-O {[%clk 0:02:46]}  Nce7 {[%clk 0:01:50]} 18. b5 {[%clk 0:02:35]}  Kb8 {[%clk 0:01:45]} 19. a4 {[%clk 0:02:32]}  c5 {[%clk 0:01:25]} 20. bxc6 {[%clk 0:02:21]}  Nxc6 {[%clk 0:01:25]} 21. Kb2 {[%clk 0:02:20]}  Nf4 {[%clk 0:01:11]} 22. Nxe5 {[%clk 0:02:17]}  Nxe5 {[%clk 0:01:01]} 23. Bxf4 {[%clk 0:02:17]}  f6 {[%clk 0:00:59]} 24. gxf6 {[%clk 0:02:09]}  gxf6 {[%clk 0:01:00]} 25. Be4 {[%clk 0:02:09]}  Bf5 {[%clk 0:00:49]} 26. Bd5 {[%clk 0:01:55]}  Be6 {[%clk 0:00:49]} 27. Rh1 {[%clk 0:01:29]}  Rxh1 {[%clk 0:00:42]} 28. Bxh1 {[%clk 0:01:30]}  Qd6 {[%clk 0:00:37]} 29. Qb3 {[%clk 0:01:28]}  Bc8 {[%clk 0:00:35]} 30. Bg3 {[%clk 0:01:27]}  f5 {[%clk 0:00:32]} 31. Qb5 {[%clk 0:01:26]}  f4 {[%clk 0:00:30]} 32. Bh4 {[%clk 0:01:03]}  f3 {[%clk 0:00:19]} 33. Bg3 {[%clk 0:00:57]}  fxe2 {[%clk 0:00:13]} 34. Bxe5 {[%clk 0:00:57]} 1-0


[Site "https://www.chess.com"]

[Event "Titled Tuesday Blitz June 13 Early 2023"]
[White "Sadykov, Ramil"]
[Black "Ai, Evan"]
[WhiteFideId "24113590"]
[BlackFideId "2094770"]
[WhiteElo "2245"]
[BlackElo "1963"]
[Result "1-0"]
[Round "9"]
[TimeControl "180+2"]
[Date "2023.06.13"]
[WhiteClock "0:00:13"]
[BlackClock "0:01:11"]
[Board "81"]

1. d4 {[%clk 0:02:54]}  Nf6 {[%clk 0:02:49]} 2. Nc3 {[%clk 0:02:54]}  d5 {[%clk 0:02:49]} 3. Bf4 {[%clk 0:02:55]}  Bf5 {[%clk 0:02:48]} 4. e3 {[%clk 0:02:54]}  c6 {[%clk 0:02:40]} 5. Nf3 {[%clk 0:02:53]}  Nbd7 {[%clk 0:02:39]} 6. Ne5 {[%clk 0:02:51]}  Nxe5 {[%clk 0:02:38]} 7. Bxe5 {[%clk 0:02:35]}  Nd7 {[%clk 0:02:36]} 8. Bg3 {[%clk 0:02:33]}  f6 {[%clk 0:02:31]} 9. Bd3 {[%clk 0:02:30]}  Bxd3 {[%clk 0:02:25]} 10. Qxd3 {[%clk 0:02:28]}  e5 {[%clk 0:02:23]} 11. dxe5 {[%clk 0:02:00]}  fxe5 {[%clk 0:02:24]} 12. O-O-O {[%clk 0:01:58]}  Qf6 {[%clk 0:02:11]} 13. Nxd5 {[%clk 0:01:43]}  cxd5 {[%clk 0:02:09]} 14. Qxd5 {[%clk 0:01:44]}  Qc6 {[%clk 0:02:07]} 15. Bxe5 {[%clk 0:01:35]}  Qxd5 {[%clk 0:02:01]} 16. Rxd5 {[%clk 0:01:36]}  Nxe5 {[%clk 0:01:58]} 17. Rxe5+ {[%clk 0:01:37]}  Be7 {[%clk 0:01:50]} 18. f4 {[%clk 0:01:25]}  Kf7 {[%clk 0:01:45]} 19. Rd1 {[%clk 0:01:25]}  Rhd8 {[%clk 0:01:44]} 20. c3 {[%clk 0:01:16]}  Rxd1+ {[%clk 0:01:42]} 21. Kxd1 {[%clk 0:01:17]}  Rd8+ {[%clk 0:01:42]} 22. Ke2 {[%clk 0:01:17]}  Rd6 {[%clk 0:01:40]} 23. e4 {[%clk 0:01:05]}  Rb6 {[%clk 0:01:40]} 24. b3 {[%clk 0:00:59]}  Bf6 {[%clk 0:01:40]} 25. Rc5 {[%clk 0:00:59]}  Rc6 {[%clk 0:01:40]} 26. Rxc6 {[%clk 0:00:56]}  bxc6 {[%clk 0:01:41]} 27. e5 {[%clk 0:00:55]}  Be7 {[%clk 0:01:41]} 28. Kd3 {[%clk 0:00:56]}  Ke6 {[%clk 0:01:40]} 29. Ke4 {[%clk 0:00:56]}  g6 {[%clk 0:01:41]} 30. g4 {[%clk 0:00:56]}  Bc5 {[%clk 0:01:40]} 31. b4 {[%clk 0:00:44]}  Bb6 {[%clk 0:01:40]} 32. a4 {[%clk 0:00:42]}  a5 {[%clk 0:01:40]} 33. f5+ {[%clk 0:00:40]}  gxf5+ {[%clk 0:01:40]} 34. gxf5+ {[%clk 0:00:41]}  Ke7 {[%clk 0:01:41]} 35. h3 {[%clk 0:00:16]}  h6 {[%clk 0:01:38]} 36. Kf4 {[%clk 0:00:14]}  Bc7 {[%clk 0:01:37]} 37. Ke4 {[%clk 0:00:15]}  Bb6 {[%clk 0:01:37]} 38. Kd3 {[%clk 0:00:14]}  Bc7 {[%clk 0:01:36]} 39. Kd4 {[%clk 0:00:15]}  Bb6+ {[%clk 0:01:35]} 40. Kc4 {[%clk 0:00:15]}  Bc7 {[%clk 0:01:17]} 41. Kc5 {[%clk 0:00:16]}  Bxe5 {[%clk 0:01:14]} 42. bxa5 {[%clk 0:00:16]}  Bxc3 {[%clk 0:01:14]} 43. a6 {[%clk 0:00:16]}  Be1 {[%clk 0:01:14]} 44. Kxc6 {[%clk 0:00:15]}  Bf2 {[%clk 0:01:13]} 45. Kb7 {[%clk 0:00:13]}  Kf6 {[%clk 0:01:13]} 46. a7 {[%clk 0:00:13]}  Kxf5 {[%clk 0:01:11]} 47. a8=Q {[%clk 0:00:13]} 1-0


[Site "https://www.chess.com"]

[Event "Titled Tuesday Blitz June 13 Early 2023"]
[White "Bagwe Gaurang"]
[Black "Altman, Joshua"]
[WhiteFideId "45039895"]
[BlackFideId "426210"]
[WhiteElo "1847"]
[BlackElo "2028"]
[Result "1-0"]
[Round "9"]
[TimeControl "180+2"]
[Date "2023.06.13"]
[WhiteClock "0:00:34"]
[BlackClock "0:00:08"]
[Board "83"]

1. e4 {[%clk 0:03:00]}  e6 {[%clk 0:02:59]} 2. d4 {[%clk 0:03:00]}  d5 {[%clk 0:02:59]} 3. e5 {[%clk 0:02:57]}  c5 {[%clk 0:02:59]} 4. c3 {[%clk 0:02:58]}  Nc6 {[%clk 0:03:00]} 5. Nf3 {[%clk 0:02:57]}  Qb6 {[%clk 0:03:00]} 6. a3 {[%clk 0:02:54]}  c4 {[%clk 0:03:00]} 7. Nbd2 {[%clk 0:02:52]}  Na5 {[%clk 0:03:00]} 8. Rb1 {[%clk 0:02:52]}  Bd7 {[%clk 0:03:00]} 9. h4 {[%clk 0:02:52]}  Qc7 {[%clk 0:02:59]} 10. h5 {[%clk 0:02:47]}  h6 {[%clk 0:02:58]} 11. Be2 {[%clk 0:02:47]}  Ne7 {[%clk 0:02:58]} 12. Nf1 {[%clk 0:02:43]}  Nc8 {[%clk 0:02:55]} 13. Ne3 {[%clk 0:02:41]}  Nb6 {[%clk 0:02:54]} 14. O-O {[%clk 0:02:36]}  Be7 {[%clk 0:02:50]} 15. Qe1 {[%clk 0:02:34]}  Ba4 {[%clk 0:02:46]} 16. Bd1 {[%clk 0:02:30]}  Qd7 {[%clk 0:02:28]} 17. Nd2 {[%clk 0:02:28]}  O-O-O {[%clk 0:02:20]} 18. b3 {[%clk 0:02:17]}  cxb3 {[%clk 0:02:10]} 19. Nxb3 {[%clk 0:02:17]}  Nxb3 {[%clk 0:02:04]} 20. Bxb3 {[%clk 0:02:17]}  Bb5 {[%clk 0:02:04]} 21. c4 {[%clk 0:02:11]}  dxc4 {[%clk 0:01:57]} 22. Bd1 {[%clk 0:02:05]}  Bc6 {[%clk 0:01:39]} 23. Be2 {[%clk 0:01:55]}  Qxd4 {[%clk 0:01:32]} 24. Qa5 {[%clk 0:01:55]}  Qe4 {[%clk 0:01:21]} 25. Bd2 {[%clk 0:01:43]}  Kb8 {[%clk 0:00:28]} 26. Bf3 {[%clk 0:01:37]}  Qd4 {[%clk 0:00:29]} 27. Bc3 {[%clk 0:01:37]}  Qc5 {[%clk 0:00:27]} 28. Qxc5 {[%clk 0:01:36]}  Bxc5 {[%clk 0:00:27]} 29. Bxc6 {[%clk 0:01:37]}  bxc6 {[%clk 0:00:28]} 30. Nxc4 {[%clk 0:01:36]}  Kc7 {[%clk 0:00:23]} 31. Nd6 {[%clk 0:01:11]}  Bxd6 {[%clk 0:00:17]} 32. exd6+ {[%clk 0:01:12]}  Kxd6 {[%clk 0:00:13]} 33. Bxg7 {[%clk 0:01:12]}  Rh7 {[%clk 0:00:11]} 34. Rfd1+ {[%clk 0:01:06]}  Nd5 {[%clk 0:00:12]} 35. Bf6 {[%clk 0:01:02]}  Rg8 {[%clk 0:00:11]} 36. Rb7 {[%clk 0:01:00]}  Kc5 {[%clk 0:00:09]} 37. Bd4+ {[%clk 0:01:00]}  Kd6 {[%clk 0:00:10]} 38. Rxa7 {[%clk 0:00:59]}  Rg4 {[%clk 0:00:09]} 39. f3 {[%clk 0:00:58]}  Rg5 {[%clk 0:00:09]} 40. a4 {[%clk 0:00:53]}  e5 {[%clk 0:00:08]} 41. Be3 {[%clk 0:00:50]}  Rg3 {[%clk 0:00:08]} 42. Kf2 {[%clk 0:00:50]}  Rhg7 {[%clk 0:00:07]} 43. Rg1 {[%clk 0:00:39]}  Nxe3 {[%clk 0:00:08]} 44. Kxe3 {[%clk 0:00:39]}  Rxg2 {[%clk 0:00:08]} 45. Rxg2 {[%clk 0:00:40]}  Rxg2 {[%clk 0:00:09]} 46. Rxf7 {[%clk 0:00:40]}  Ke6 {[%clk 0:00:08]} 47. Rh7 {[%clk 0:00:40]}  Ra2 {[%clk 0:00:08]} 48. Rxh6+ {[%clk 0:00:40]}  Kd5 {[%clk 0:00:08]} 49. Rh8 {[%clk 0:00:39]}  Rxa4 {[%clk 0:00:08]} 50. h6 {[%clk 0:00:40]}  Rh4 {[%clk 0:00:08]} 51. h7 {[%clk 0:00:39]}  Kc5 {[%clk 0:00:08]} 52. Kd3 {[%clk 0:00:39]}  Rh3 {[%clk 0:00:08]} 53. Ke4 {[%clk 0:00:39]}  Kc4 {[%clk 0:00:05]} 54. Kxe5 {[%clk 0:00:38]}  c5 {[%clk 0:00:04]} 55. f4 {[%clk 0:00:39]}  Kc3 {[%clk 0:00:04]} 56. f5 {[%clk 0:00:38]}  c4 {[%clk 0:00:05]} 57. f6 {[%clk 0:00:38]}  Re3+ {[%clk 0:00:05]} 58. Kf4 {[%clk 0:00:38]}  Rh3 {[%clk 0:00:05]} 59. f7 {[%clk 0:00:38]}  Kc2 {[%clk 0:00:04]} 60. f8=Q {[%clk 0:00:38]}  c3 {[%clk 0:00:05]} 61. Qa3 {[%clk 0:00:37]}  Kd1 {[%clk 0:00:05]} 62. Rd8+ {[%clk 0:00:37]}  Ke2 {[%clk 0:00:05]} 63. h8=Q {[%clk 0:00:36]}  Rf3+ {[%clk 0:00:05]} 64. Kg4 {[%clk 0:00:36]}  c2 {[%clk 0:00:06]} 65. Qh2+ {[%clk 0:00:34]}  Rf2 {[%clk 0:00:06]} 66. Rd2+ {[%clk 0:00:34]}  Kxd2 {[%clk 0:00:07]} 67. Qxf2+ {[%clk 0:00:34]}  Kd1 {[%clk 0:00:08]} 68. Qd3+ {[%clk 0:00:34]}  Kc1 {[%clk 0:00:08]} 69. Qdxc2# {[%clk 0:00:34]} 1-0


[Site "https://www.chess.com"]

[Event "Titled Tuesday Blitz June 13 Early 2023"]
[White "Khamdamova, Afruza"]
[Black "robertoalejandro10"]
[WhiteFideId "14210444"]
[WhiteElo "2312"]
[BlackElo "2595"]
[Result "0-1"]
[Round "9"]
[TimeControl "180+2"]
[Date "2023.06.13"]
[WhiteClock "0:00:08"]
[BlackClock "0:00:54"]
[Board "85"]

1. e4 {[%clk 0:03:00]}  c5 {[%clk 0:02:56]} 2. Nf3 {[%clk 0:03:01]}  g6 {[%clk 0:02:56]} 3. c3 {[%clk 0:02:59]}  d5 {[%clk 0:02:56]} 4. exd5 {[%clk 0:02:58]}  Qxd5 {[%clk 0:02:57]} 5. d4 {[%clk 0:02:58]}  Bg7 {[%clk 0:02:55]} 6. Be2 {[%clk 0:02:54]}  cxd4 {[%clk 0:02:50]} 7. Nxd4 {[%clk 0:02:53]}  Qxg2 {[%clk 0:02:36]} 8. Bf3 {[%clk 0:02:49]}  Qh3 {[%clk 0:02:36]} 9. Bf4 {[%clk 0:02:46]}  Nf6 {[%clk 0:02:17]} 10. Nd2 {[%clk 0:02:36]}  O-O {[%clk 0:02:14]} 11. Qe2 {[%clk 0:02:32]}  e5 {[%clk 0:02:05]} 12. Bxe5 {[%clk 0:02:17]}  Re8 {[%clk 0:02:04]} 13. O-O-O {[%clk 0:01:57]}  Nbd7 {[%clk 0:02:00]} 14. Nc4 {[%clk 0:01:26]}  Nxe5 {[%clk 0:01:58]} 15. Nxe5 {[%clk 0:01:26]}  Nd7 {[%clk 0:01:54]} 16. Rhe1 {[%clk 0:00:31]}  Nxe5 {[%clk 0:01:42]} 17. Bd5 {[%clk 0:00:19]}  Bg4 {[%clk 0:01:22]} 18. f3 {[%clk 0:00:11]}  Bf5 {[%clk 0:01:22]} 19. Nxf5 {[%clk 0:00:11]}  Qxf5 {[%clk 0:01:21]} 20. Bxb7 {[%clk 0:00:11]}  Rab8 {[%clk 0:01:13]} 21. Be4 {[%clk 0:00:11]}  Qe6 {[%clk 0:01:03]} 22. Kb1 {[%clk 0:00:12]}  Nc4 {[%clk 0:01:01]} 23. b3 {[%clk 0:00:08]}  Nd6 {[%clk 0:00:54]} 24. Qc2 {[%clk 0:00:08]}  Nxe4 {[%clk 0:00:54]} 25. Rxe4 {[%clk 0:00:09]}  Qf6 {[%clk 0:00:54]} 26. Rde1 {[%clk 0:00:09]}  Rxe4 {[%clk 0:00:53]} 27. Rxe4 {[%clk 0:00:09]}  Qxc3 {[%clk 0:00:53]} 28. Qxc3 {[%clk 0:00:10]}  Bxc3 {[%clk 0:00:54]} 29. Kc2 {[%clk 0:00:10]}  Bf6 {[%clk 0:00:54]} 30. Rc4 {[%clk 0:00:10]}  Rb7 {[%clk 0:00:53]} 31. Rc8+ {[%clk 0:00:11]}  Kg7 {[%clk 0:00:54]} 32. Kd3 {[%clk 0:00:11]}  Rd7+ {[%clk 0:00:53]} 33. Kc4 {[%clk 0:00:11]}  Rd2 {[%clk 0:00:54]} 34. a4 {[%clk 0:00:08]}  Rc2+ {[%clk 0:00:54]} 0-1


[Site "https://www.chess.com"]

[Event "Titled Tuesday Blitz June 13 Early 2023"]
[White "Vovk, Orest"]
[Black "Mogirzan, Matei-Valeriu"]
[WhiteFideId "14113490"]
[BlackFideId "1257455"]
[WhiteElo "2215"]
[BlackElo "1733"]
[Result "1-0"]
[Round "9"]
[TimeControl "180+2"]
[Date "2023.06.13"]
[WhiteClock "0:00:19"]
[BlackClock "0:00:00"]
[Board "89"]

1. g4 {[%clk 0:03:00]}  e5 {[%clk 0:02:51]} 2. Bg2 {[%clk 0:02:58]}  Bc5 {[%clk 0:02:47]} 3. d3 {[%clk 0:02:57]}  Nc6 {[%clk 0:02:46]} 4. h3 {[%clk 0:02:50]}  d5 {[%clk 0:02:41]} 5. c4 {[%clk 0:02:49]}  dxc4 {[%clk 0:02:40]} 6. Bxc6+ {[%clk 0:02:47]}  bxc6 {[%clk 0:02:39]} 7. Qa4 {[%clk 0:02:47]}  Qd5 {[%clk 0:02:35]} 8. Nf3 {[%clk 0:02:42]}  cxd3 {[%clk 0:02:14]} 9. Nc3 {[%clk 0:02:41]}  Qe6 {[%clk 0:02:11]} 10. Ng5 {[%clk 0:02:29]}  Qd7 {[%clk 0:01:50]} 11. Nge4 {[%clk 0:02:24]}  Bb6 {[%clk 0:01:44]} 12. Be3 {[%clk 0:02:21]}  h5 {[%clk 0:01:30]} 13. O-O-O {[%clk 0:02:14]}  hxg4 {[%clk 0:01:25]} 14. Rxd3 {[%clk 0:02:12]}  Qe6 {[%clk 0:01:16]} 15. Nd6+ {[%clk 0:01:45]}  Kf8 {[%clk 0:00:45]} 16. Qa3 {[%clk 0:01:11]}  Ne7 {[%clk 0:00:28]} 17. Nde4 {[%clk 0:00:54]}  Bb7 {[%clk 0:00:20]} 18. Rhd1 {[%clk 0:00:52]}  f6 {[%clk 0:00:16]} 19. hxg4 {[%clk 0:00:48]}  Kf7 {[%clk 0:00:14]} 20. Nc5 {[%clk 0:00:38]}  Bxc5 {[%clk 0:00:12]} 21. Bxc5 {[%clk 0:00:38]}  Nd5 {[%clk 0:00:11]} 22. e4 {[%clk 0:00:34]}  Nb6 {[%clk 0:00:06]} 23. f3 {[%clk 0:00:27]}  Rh2 {[%clk 0:00:04]} 24. Bxb6 {[%clk 0:00:24]}  axb6 {[%clk 0:00:03]} 25. Rd7+ {[%clk 0:00:24]}  Kg6 {[%clk 0:00:03]} 26. Qe7 {[%clk 0:00:24]}  Qxe7 {[%clk 0:00:03]} 27. Rxe7 {[%clk 0:00:24]}  Rc8 {[%clk 0:00:01]} 28. Rdd7 {[%clk 0:00:23]}  Rh1+ {[%clk 0:00:01]} 29. Kc2 {[%clk 0:00:23]}  Kg5 {[%clk 0:00:02]} 30. Ne2 {[%clk 0:00:20]}  Rh2 {[%clk 0:00:01]} 31. Rxg7+ {[%clk 0:00:20]}  Kh6 {[%clk 0:00:00]} 32. Rh7+ {[%clk 0:00:19]} 1-0


[Site "https://www.chess.com"]

[Event "Titled Tuesday Blitz June 13 Early 2023"]
[White "Torres Hernandez, Leslie Carolin"]
[Black "Palencia Morales, Wilson Guillermo"]
[WhiteFideId "8400504"]
[BlackFideId "4401859"]
[WhiteElo "1920"]
[BlackElo "2144"]
[Result "0-1"]
[Round "9"]
[TimeControl "180+2"]
[Date "2023.06.13"]
[WhiteClock "0:00:20"]
[BlackClock "0:00:39"]
[Board "95"]

1. e4 {[%clk 0:03:00]}  c5 {[%clk 0:02:58]} 2. Nf3 {[%clk 0:03:00]}  d6 {[%clk 0:02:57]} 3. Bb5+ {[%clk 0:03:00]}  Nd7 {[%clk 0:02:56]} 4. a4 {[%clk 0:02:59]}  g6 {[%clk 0:02:47]} 5. a5 {[%clk 0:02:56]}  Bg7 {[%clk 0:02:42]} 6. O-O {[%clk 0:02:56]}  Nf6 {[%clk 0:02:42]} 7. Nc3 {[%clk 0:02:56]}  O-O {[%clk 0:02:42]} 8. Re1 {[%clk 0:02:53]}  a6 {[%clk 0:02:42]} 9. Bf1 {[%clk 0:02:52]}  b5 {[%clk 0:02:41]} 10. axb6 {[%clk 0:02:52]}  Bb7 {[%clk 0:02:41]} 11. d3 {[%clk 0:02:53]}  Nxb6 {[%clk 0:02:40]} 12. Qd2 {[%clk 0:02:53]}  h6 {[%clk 0:02:35]} 13. Qf4 {[%clk 0:02:49]}  Nh5 {[%clk 0:02:35]} 14. Qh4 {[%clk 0:02:47]}  e5 {[%clk 0:02:32]} 15. Qxd8 {[%clk 0:02:40]}  Raxd8 {[%clk 0:02:27]} 16. Ra5 {[%clk 0:02:39]}  f5 {[%clk 0:02:21]} 17. Nd2 {[%clk 0:02:33]}  Nf4 {[%clk 0:02:15]} 18. g3 {[%clk 0:02:30]}  Ne6 {[%clk 0:02:15]} 19. exf5 {[%clk 0:02:26]}  gxf5 {[%clk 0:02:14]} 20. Bg2 {[%clk 0:02:23]}  Bc8 {[%clk 0:02:12]} 21. Nd5 {[%clk 0:02:16]}  Nxd5 {[%clk 0:02:12]} 22. Bxd5 {[%clk 0:02:16]}  Kh8 {[%clk 0:02:12]} 23. c3 {[%clk 0:02:16]}  Nc7 {[%clk 0:02:11]} 24. Bc6 {[%clk 0:02:12]}  Rf6 {[%clk 0:02:01]} 25. Nc4 {[%clk 0:01:45]}  e4 {[%clk 0:01:33]} 26. dxe4 {[%clk 0:01:35]}  fxe4 {[%clk 0:01:32]} 27. Bf4 {[%clk 0:01:20]}  Ne6 {[%clk 0:01:25]} 28. Nxd6 {[%clk 0:01:13]}  Nxf4 {[%clk 0:01:20]} 29. Nxc8 {[%clk 0:01:07]}  Rxc8 {[%clk 0:01:03]} 30. Bxe4 {[%clk 0:00:55]}  Nh3+ {[%clk 0:00:57]} 31. Kg2 {[%clk 0:00:55]}  Nxf2 {[%clk 0:00:57]} 32. Bb7 {[%clk 0:00:49]}  Rb8 {[%clk 0:00:51]} 33. Re7 {[%clk 0:00:35]}  Ng4 {[%clk 0:00:42]} 34. Rxc5 {[%clk 0:00:20]}  Bf8 {[%clk 0:00:39]} 0-1


[Site "https://www.chess.com"]

[Event "Titled Tuesday Blitz June 13 Early 2023"]
[White "Liu, Casper"]
[Black "Slavin, Alexey"]
[WhiteFideId "1454153"]
[BlackFideId "24104388"]
[WhiteElo "2221"]
[BlackElo "2264"]
[Result "0-1"]
[Round "9"]
[TimeControl "180+2"]
[Date "2023.06.13"]
[WhiteClock "0:01:46"]
[BlackClock "0:00:29"]
[Board "98"]

1. e4 {[%clk 0:03:00]}  Nc6 {[%clk 0:02:59]} 2. Nc3 {[%clk 0:02:59]}  Nf6 {[%clk 0:02:58]} 3. Nf3 {[%clk 0:02:59]}  d6 {[%clk 0:02:57]} 4. Bc4 {[%clk 0:02:59]}  Bg4 {[%clk 0:02:56]} 5. d3 {[%clk 0:02:58]}  e5 {[%clk 0:02:55]} 6. Bg5 {[%clk 0:02:56]}  Be7 {[%clk 0:02:55]} 7. h3 {[%clk 0:02:55]}  Bh5 {[%clk 0:02:54]} 8. g4 {[%clk 0:02:54]}  Bg6 {[%clk 0:02:54]} 9. Nh4 {[%clk 0:02:53]}  Nxe4 {[%clk 0:02:47]} 10. Bxe7 {[%clk 0:02:39]}  Nxc3 {[%clk 0:02:46]} 11. Bxd8 {[%clk 0:02:39]}  Nxd1 {[%clk 0:02:46]} 12. Bxc7 {[%clk 0:02:40]}  Nxb2 {[%clk 0:02:45]} 13. Bxd6 {[%clk 0:02:40]}  Nxc4 {[%clk 0:02:41]} 14. dxc4 {[%clk 0:02:40]}  Bxc2 {[%clk 0:02:36]} 15. O-O {[%clk 0:02:37]}  O-O-O {[%clk 0:02:24]} 16. Bc5 {[%clk 0:02:37]}  Bd3 {[%clk 0:02:18]} 17. Rfe1 {[%clk 0:02:34]}  f6 {[%clk 0:02:03]} 18. Ng2 {[%clk 0:02:35]}  Bxc4 {[%clk 0:01:56]} 19. Ne3 {[%clk 0:02:35]}  Be6 {[%clk 0:01:54]} 20. a4 {[%clk 0:02:36]}  Kb8 {[%clk 0:01:49]} 21. a5 {[%clk 0:02:36]}  Nd4 {[%clk 0:01:45]} 22. Reb1 {[%clk 0:02:34]}  Rc8 {[%clk 0:01:35]} 23. Bd6+ {[%clk 0:02:25]}  Ka8 {[%clk 0:01:34]} 24. Rb2 {[%clk 0:02:25]}  Rhd8 {[%clk 0:01:32]} 25. Ba3 {[%clk 0:02:23]}  Nb3 {[%clk 0:01:21]} 26. Rab1 {[%clk 0:02:23]}  Nxa5 {[%clk 0:01:20]} 27. Bb4 {[%clk 0:02:21]}  Nc6 {[%clk 0:01:18]} 28. Bc5 {[%clk 0:02:20]}  Rd7 {[%clk 0:01:18]} 29. Ra1 {[%clk 0:02:19]}  a6 {[%clk 0:01:12]} 30. Nc2 {[%clk 0:02:19]}  Rd2 {[%clk 0:01:05]} 31. Be3 {[%clk 0:02:18]}  Re2 {[%clk 0:00:58]} 32. Rab1 {[%clk 0:02:01]}  Na5 {[%clk 0:00:52]} 33. Rb6 {[%clk 0:01:57]}  Ba2 {[%clk 0:00:46]} 34. Rd1 {[%clk 0:01:52]}  Rexc2 {[%clk 0:00:42]} 35. Rd7 {[%clk 0:01:52]}  R2c7 {[%clk 0:00:41]} 36. Rd2 {[%clk 0:01:51]}  Nc4 {[%clk 0:00:41]} 37. Rxa2 {[%clk 0:01:51]}  Nxb6 {[%clk 0:00:40]} 38. Bxb6 {[%clk 0:01:52]}  Rc1+ {[%clk 0:00:35]} 39. Kg2 {[%clk 0:01:52]}  R1c2 {[%clk 0:00:35]} 40. Ra3 {[%clk 0:01:51]}  Rb2 {[%clk 0:00:33]} 41. Ba5 {[%clk 0:01:46]}  Ka7 {[%clk 0:00:29]} 0-1


[Site "https://www.chess.com"]